Workbook

Sheet 12.01.2025
B1: Согласовано Начальник МКУ "Управление образования" Муслюмовского района РТ ________________ /Л.Я. Хабибуллина/ | F1: Согласовано Директор ОУ ____________________________________________________________________________ | L1: Утверждаю Индивидуальный предприниматель Ибрагимова Э.И. ______________ /Э.И. Ибрагимова/
A2: ЦИКЛИЧНОЕ ВЕСЕННЕЕ (ЛЕТНЕЕ) ДВУХНЕДЕЛЬНОЕ МЕНЮ ДЛЯ ОРГАНИЗАЦИИ ПИТАНИЯ ДЕТЕЙ В ВОЗРАСТЕ ДО 3-х ЛЕТ, ПОСЕЩАЮЩИХ ДОШКОЛЬНЫЕ ОБРАЗОВАТЕЛЬНЫЕ УЧРЕЖДЕНИЯ И ДОШКОЛЬНЫЕ ГРУППЫ ОБРАЗОВАТЕЛЬНЫХ УЧРЕЖДЕНИЙ МУСЛЮМОВСКОГО МУНИЦИПАЛЬНОГО РАЙОНА РТ НА 2025 г.
A6: =IF(Dop!B3<>"",Dop!B3,"") -> Ясли | R6: =IF(Дата_Сост<>"",Дата_Сост,"") -> 2025-01-01
A8: Но-мер рец. | B8: Прием пищи, наименование изделий (блюд) | C8: Вы-ход, г | D8: Белки, г | E8: Жиры, г | F8: Угле-воды, г | G8: ЭЦ, ккал | H8: Минеральные элементы, мг | L8: Витамины, мг | R8: Вита-мин С, мг
D9: всего | E9: всего | H9: Ca | I9: Mg | J9: P | K9: Fe | L9: А | M9: B | N9: В1 | O9: В2 | P9: РР | Q9: НЭ
B10: 1 НЕДЕЛЯ
B11: 1 ДЕНЬ
B12: Завтрак
A13: ="-" -> - | B13: Батон | C13: ="30" -> 30 | D13: 2.31 | E13: 0.9 | F13: 15.99 | G13: 80.86 | H13: 6.6 | I13: 9.9 | J13: 25.5 | K13: 0.6 | L13: 0 | M13: 0 | N13: 0.05 | O13: 0.02 | P13: 0.48 | Q13: 0.9 | R13: 0
A14: ="" ->  | B14: Масло сливочное | C14: ="5" -> 5 | D14: 0.04 | E14: 3.63 | F14: 0.07 | G14: 33.03 | H14: 1.2 | I14: 0 | J14: 1.5 | K14: 0.01 | L14: 20 | M14: 15 | N14: 0 | O14: 0.01 | P14: 0.01 | Q14: 0.01 | R14: 0
A15: ="-" -> - | B15: Печенье | C15: ="20" -> 20 | D15: 1.5 | E15: 1.96 | F15: 15.34 | G15: 84.45 | H15: 5.8 | I15: 4 | J15: 18 | K15: 0.42 | L15: 2 | M15: 1.6 | N15: 0.02 | O15: 0.01 | P15: 0.14 | Q15: 0.38 | R15: 0
A16: ="27/10" -> 27/10 | B16: Чай сладкий | C16: 142,5/7,5 | D16: 0.15 | E16: 0.04 | F16: 7.44 | G16: 29.07 | H16: 0.22 | I16: 0 | J16: 0 | K16: 0.02 | L16: 0 | M16: 0 | N16: 0 | O16: 0 | P16: 0 | Q16: 0 | R16: 0
A17: ="15/4" -> 15/4 | B17: Каша ячневая молочная с маслом сливочным | C17: 147/3 | D17: 4.48 | E17: 3.58 | F17: 25.31 | G17: 147.71 | H17: 86.41 | I17: 20.43 | J17: 137.53 | K17: 0.54 | L17: 14.4 | M17: 12 | N17: 0.08 | O17: 0.09 | P17: 0.7 | Q17: 1.9 | R17: 0.31
B18: Итого | C18: 355 | D18: =SUM(D13:D17) -> 8.48 | E18: =SUM(E13:E17) -> 10.11 | F18: 64.15 | G18: 375.12 | H18: 100.23 | I18: 34.33 | J18: 182.53 | K18: 1.59 | L18: 36.4 | M18: 28.6 | N18: 0.15 | O18: 0.13 | P18: 1.33 | Q18: 3.19 | R18: 0.31
B19: Второй завтрак
A20: ="-" -> - | B20: Сок в ассортименте | C20: ="100" -> 100 | D20: 0.5 | E20: 0.1 | F20: 10.3 | G20: 43.24 | H20: 7 | I20: 4 | J20: 7 | K20: 1.4 | L20: 0 | M20: 0 | N20: 0.01 | O20: 0.01 | P20: 0.1 | Q20: 0.2 | R20: 2
B21: Итого | C21: 100 | D21: =SUM(D20) -> 0.5 | E21: =SUM(E20) -> 0.1 | F21: 10.3 | G21: 43.24 | H21: 7 | I21: 4 | J21: 7 | K21: 1.4 | L21: 0 | M21: 0 | N21: 0.01 | O21: 0.01 | P21: 0.1 | Q21: 0.2 | R21: 2
B22: Обед
A23: ="-" -> - | B23: Хлеб пшеничный | C23: ="20" -> 20 | D23: 1.32 | E23: 0.13 | F23: 9.38 | G23: 44.78 | H23: 0 | I23: 0 | J23: 0 | K23: 0 | L23: 0 | M23: 0 | N23: 0 | O23: 0 | P23: 0 | Q23: 0 | R23: 0
A24: ="-" -> - | B24: Хлеб ржаной | C24: ="10" -> 10 | D24: 0.66 | E24: 0.12 | F24: 4.17 | G24: 19.34 | H24: 3.5 | I24: 4.7 | J24: 15.8 | K24: 0.39 | L24: 0 | M24: 0.5 | N24: 0.02 | O24: 0.01 | P24: 0.07 | Q24: 0.2 | R24: 0
A25: ="6/10" -> 6/10 | B25: Компот из сухофруктов | C25: 135/15 | D25: 0.76 | E25: 0.04 | F25: 17.38 | G25: 65.70 | H25: 23.5 | I25: 14.96 | J25: 20.37 | K25: 0.49 | L25: 0 | M25: 472.5 | N25: 0.01 | O25: 0.03 | P25: 0.38 | Q25: 0.59 | R25: 0.24
A26: ="6/1" -> 6/1 | B26: Салат из белокочанной капусты с морковью и растительным маслом | C26: 28,2/1,8 | D26: 0.46 | E26: 1.79 | F26: 2.8 | G26: 27.81 | H26: 12.42 | I26: 5.35 | J26: 9.57 | K26: 0.17 | L26: 0 | M26: 568.89 | N26: 0.01 | O26: 0.01 | P26: 0.2 | Q26: 0.26 | R26: 10.16
A27: ="18/2" -> 18/2 | B27: Суп картофельный с макаронными изделиями на говяжьем бульоне | C27: ="150" -> 150 | D27: 1.61 | E27: 1.43 | F27: 12.17 | G27: 66.90 | H27: 9.37 | I27: 13.26 | J27: 33.35 | K27: 0.55 | L27: 0 | M27: 785.16 | N27: 0.06 | O27: 0.03 | P27: 0.58 | Q27: 1.03 | R27: 3.67
A28: ="4/9" -> 4/9 | B28: Плов из мяса цыплят-бройлеров | C28: 112,5/37,5 | D28: 13.48 | E28: 14.69 | F28: 28.18 | G28: 298.36 | H28: 15.24 | I28: 25.31 | J28: 121.02 | K28: 1.24 | L28: 23.73 | M28: 996.78 | N28: 0.05 | O28: 0.07 | P28: 4.7 | Q28: 9.75 | R28: 0.69
B29: Итого | C29: 510 | D29: =SUM(D23:D28) -> 18.29 | E29: =SUM(E23:E28) -> 18.2 | F29: 74.08 | G29: 522.88 | H29: 64.03 | I29: 63.58 | J29: 200.11 | K29: 2.84 | L29: 23.73 | M29: 2823.83 | N29: 0.15 | O29: 0.15 | P29: 5.93 | Q29: 11.83 | R29: 14.76
B30: Уплотненный полдник
A31: ="-" -> - | B31: Хлеб пшеничный | C31: ="30" -> 30 | D31: 1.98 | E31: 0.2 | F31: 14.07 | G31: 67.17 | H31: 0 | I31: 0 | J31: 0 | K31: 0 | L31: 0 | M31: 0 | N31: 0 | O31: 0 | P31: 0 | Q31: 0 | R31: 0
A32: ="27/10" -> 27/10 | B32: Чай полусладкий | C32: 146,3/3,7 | D32: 0.15 | E32: 0.04 | F32: 3.78 | G32: 15.13 | H32: 0.11 | I32: 0 | J32: 0 | K32: 0.01 | L32: 0 | M32: 0 | N32: 0 | O32: 0 | P32: 0 | Q32: 0 | R32: 0
A33: 2/4 | B33: Каша гречневая молочная с маслом сливочным | C33: 150 | D33: 5.87 | E33: 5.99 | F33: 25.86 | G33: 174.76 | H33: 95.42 | I33: 67.05 | J33: 147.22 | K33: 2.05 | L33: 30 | M33: 19.58 | N33: 0.14 | O33: 0.16 | P33: 1.14 | Q33: 2.77 | R33: 0.39
A34: ="-" -> - | B34: Фрукты | C34: ="100" -> 100 | D34: 0.4 | E34: 0.4 | F34: 11.6 | G34: 48.68 | H34: 16 | I34: 9 | J34: 11 | K34: 2.2 | L34: 0 | M34: 30 | N34: 0.03 | O34: 0.02 | P34: 0.3 | Q34: 0.4 | R34: 10
B35: Итого | C35: 430 | D35: =SUM(D31:D34) -> 8.4 | E35: =SUM(E31:E34) -> 6.63 | F35: 55.31 | G35: 305.74 | H35: 111.53 | I35: 76.05 | J35: 158.22 | K35: 4.26 | L35: 30 | M35: 49.58 | N35: 0.17 | O35: 0.18 | P35: 1.44 | Q35: 3.17 | R35: 10.39
B36: Итого за день | C36: =C18+C21+C29+C35 -> 1395 | D36: =D18+D21+D29+D35 -> 35.67 | E36: 35.04 | F36: 203.84 | G36: 1246.98 | H36: 282.79 | I36: 177.96 | J36: 547.86 | K36: 10.09 | L36: 90.13 | M36: 2902.01 | N36: 0.48 | O36: 0.47 | P36: 8.8 | Q36: 18.39 | R36: 27.46
B38: 2 ДЕНЬ
B39: Завтрак
A40: ="-" -> - | B40: Батон | C40: ="30" -> 30 | D40: 2.31 | E40: 0.9 | F40: 15.99 | G40: 80.86 | H40: 6.6 | I40: 9.9 | J40: 25.5 | K40: 0.6 | L40: 0 | M40: 0 | N40: 0.05 | O40: 0.02 | P40: 0.48 | Q40: 0.9 | R40: 0
A41: ="" ->  | B41: Масло сливочное | C41: ="5" -> 5 | D41: 0.04 | E41: 3.63 | F41: 0.07 | G41: 33.03 | H41: 1.2 | I41: 0 | J41: 1.5 | K41: 0.01 | L41: 20 | M41: 15 | N41: 0 | O41: 0.01 | P41: 0.01 | Q41: 0.01 | R41: 0
A42: ="29/10" -> 29/10 | B42: Чай с лимоном | C42: 144/6 | D42: 0.18 | E42: 0.04 | F42: 7.44 | G42: 29.69 | H42: 1.63 | I42: 0.42 | J42: 0.75 | K42: 0.04 | L42: 0 | M42: 0.33 | N42: 0 | O42: 0 | P42: 0 | Q42: 0.01 | R42: 0.59
A43: ="11/4" -> 11/4 | B43: Каша пшенная молочная с маслом сливочным | C43: 146,3/3,7 | D43: 4.91 | E43: 4.58 | F43: 24.47 | G43: 157.58 | H43: 72.57 | I43: 29.04 | J43: 109.02 | K43: 0.78 | L43: 16.2 | M43: 18.6 | N43: 0.11 | O43: 0.09 | P43: 0.44 | Q43: 1.87 | R43: 0.31
B44: Итого | C44: 335 | D44: =SUM(D40:D43) -> 7.44 | E44: =SUM(E40:E43) -> 9.15 | F44: 47.97 | G44: 301.16 | H44: 82 | I44: 39.36 | J44: 136.77 | K44: 1.43 | L44: 36.2 | M44: 33.93 | N44: 0.16 | O44: 0.12 | P44: 0.93 | Q44: 2.79 | R44: 0.9
B45: Второй завтрак
A46: ="-" -> - | B46: Кисломолочный продукт | C46: ="100" -> 100 | D46: 0.6 | E46: 0.3 | F46: 5.6 | G46: 24.88 | H46: 15 | I46: 9 | J46: 12 | K46: 0.4 | L46: 0 | M46: 30 | N46: 0.03 | O46: 0.03 | P46: 0.6 | Q46: 0.7 | R46: 15
B47: Итого | C47: 100 | D47: 0.6 | E47: 0.3 | F47: 5.6 | G47: 24.88 | H47: 15 | I47: 9 | J47: 12 | K47: 0.4 | L47: 0 | M47: 30 | N47: 0.03 | O47: 0.03 | P47: 0.6 | Q47: 0.7 | R47: 15
B48: Обед
A49: ="-" -> - | B49: Хлеб пшеничный | C49: ="20" -> 20 | D49: 1.32 | E49: 0.13 | F49: 9.38 | G49: 44.78 | H49: 0 | I49: 0 | J49: 0 | K49: 0 | L49: 0 | M49: 0 | N49: 0 | O49: 0 | P49: 0 | Q49: 0 | R49: 0
A50: ="-" -> - | B50: Хлеб ржаной | C50: ="10" -> 10 | D50: 0.66 | E50: 0.12 | F50: 4.17 | G50: 19.34 | H50: 3.5 | I50: 4.7 | J50: 15.8 | K50: 0.39 | L50: 0 | M50: 0.5 | N50: 0.02 | O50: 0.01 | P50: 0.07 | Q50: 0.2 | R50: 0
A51: ="3/10" -> 3/10 | B51: Компот из яблок | C51: 116/34 | D51: 0.12 | E51: 0.12 | F51: 18.06 | G51: 70.01 | H51: 5.09 | I51: 2.57 | J51: 3.07 | K51: 0.68 | L51: 0 | M51: 8.1 | N51: 0.01 | O51: 0.01 | P51: 0.08 | Q51: 0.12 | R51: 1.2
A52: ="7/2" -> 7/2 | B52: Щи из свежей капусты и картофеля на говяжьем бульоне | C52: ="150" -> 150 | D52: 1.08 | E52: 1.42 | F52: 5.91 | G52: 38.60 | H52: 21.45 | I52: 11.45 | J52: 24.34 | K52: 0.41 | L52: 0 | M52: 728.4 | N52: 0.03 | O52: 0.03 | P52: 0.44 | Q52: 0.72 | R52: 8.33
A53: ="3/3" -> 3/3 | B53: Картофельное пюре с маслом сливочным | C53: 117/3 | D53: 2.49 | E53: 2.83 | F53: 17.67 | G53: 105.22 | H53: 27.16 | I53: 24.28 | J53: 69.46 | K53: 0.9 | L53: 15 | M53: 27.29 | N53: 0.1 | O53: 0.08 | P53: 1.07 | Q53: 2.07 | R53: 4.36
A54: ="36/8" -> 36/8 | B54: Тефтели из мяса говядины с рисом | C54: ="50" -> 50 | D54: 6.47 | E54: 6.54 | F54: 6.54 | G54: 109.93 | H54: 9.94 | I54: 11.51 | J54: 75.81 | K54: 1.06 | L54: 10 | M54: 7.5 | N54: 0.03 | O54: 0.06 | P54: 1.58 | Q54: 2.96 | R54: 1.5
B55: Итого | C55: 500 | D55: =SUM(D49:D54) -> 12.14 | E55: =SUM(E49:E54) -> 11.16 | F55: 61.73 | G55: 387.88 | H55: 67.14 | I55: 54.51 | J55: 188.48 | K55: 3.44 | L55: 25 | M55: 771.79 | N55: 0.19 | O55: 0.19 | P55: 3.24 | Q55: 6.07 | R55: 15.39
B56: Уплотненный полдник
A57: ="27/10" -> 27/10 | B57: Чай сладкий | C57: 142,5/7,5 | D57: 0.15 | E57: 0.04 | F57: 7.44 | G57: 29.07 | H57: 0.22 | I57: 0 | J57: 0 | K57: 0.02 | L57: 0 | M57: 0 | N57: 0 | O57: 0 | P57: 0 | Q57: 0 | R57: 0
A58: ="10/5" -> 10/5 | B58: Запеканка творожная с изюмом | C58: 125/5 | D58: 21.2 | E58: 12.11 | F58: 21.61 | G58: 281.07 | H58: 176.58 | I58: 25.99 | J58: 230.42 | K58: 0.65 | L58: 69.65 | M58: 34.8 | N58: 0.05 | O58: 0.29 | P58: 0.52 | Q58: 4.93 | R58: 0.29
A59: ="27/12" -> 27/12 | B59: Оладьи | C59: ="70" -> 70 | D59: 4.48 | E59: 4.4 | F59: 27.23 | G59: 166.06 | H59: 7.45 | I59: 6.01 | J59: 34.94 | K59: 0.46 | L59: 3.16 | M59: 0.95 | N59: 0.05 | O59: 0.02 | P59: 0.41 | Q59: 1.35 | R59: 0
B60: Итого | C60: 350 | D60: =SUM(D57:D59) -> 25.83 | E60: 16.55 | F60: 56.28 | G60: 476.20 | H60: 184.25 | I60: 32 | J60: 265.36 | K60: 1.13 | L60: 72.81 | M60: 35.75 | N60: 0.1 | O60: 0.31 | P60: 0.93 | Q60: 6.28 | R60: 0.29
B61: Итого за день | C61: =C44+C47+C55+C60 -> 1285 | D61: 46.01 | E61: 37.16 | F61: 171.58 | G61: 1190.11 | H61: 348.39 | I61: 134.87 | J61: 602.61 | K61: 6.4 | L61: 134.01 | M61: 871.47 | N61: 0.48 | O61: 0.65 | P61: 5.7 | Q61: 15.84 | R61: 31.58
B63: 3 ДЕНЬ
B64: Завтрак
A65: ="-" -> - | B65: Батон | C65: ="30" -> 30 | D65: 2.31 | E65: 0.9 | F65: 15.99 | G65: 80.86 | H65: 6.6 | I65: 9.9 | J65: 25.5 | K65: 0.6 | L65: 0 | M65: 0 | N65: 0.05 | O65: 0.02 | P65: 0.48 | Q65: 0.9 | R65: 0
A66: ="-" -> - | B66: Масло сливочное | C66: ="5" -> 5 | D66: 0.04 | E66: 3.63 | F66: 0.07 | G66: 33.03 | H66: 1.2 | I66: 0 | J66: 1.5 | K66: 0.01 | L66: 20 | M66: 15 | N66: 0 | O66: 0.01 | P66: 0.01 | Q66: 0.01 | R66: 0
A67: ="31/10" -> 31/10 | B67: Чай с молоком | C67: 112,5/37,5 | D67: 1.21 | E67: 0.96 | F67: 9.21 | G67: 48.42 | H67: 43.87 | I67: 4.99 | J67: 31.39 | K67: 0.06 | L67: 7.5 | M67: 3.38 | N67: 0.01 | O67: 0.05 | P67: 0.03 | Q67: 0.3 | R67: 0.2
A68: ="5/4" -> 5/4 | B68: Каша манная молочная с маслом сливочным | C68: 147/3 | D68: 3.98 | E68: 3.45 | F68: 22.16 | G68: 134.39 | H68: 69.53 | I68: 11.14 | J68: 65.76 | K68: 0.29 | L68: 14.4 | M68: 12 | N68: 0.04 | O68: 0.08 | P68: 0.28 | Q68: 1.21 | R68: 0.31
B69: Итого | C69: 335 | D69: =SUM(D65:D68) -> 7.54 | E69: 8.94 | F69: 47.43 | G69: 296.69 | H69: 121.2 | I69: 26.03 | J69: 124.15 | K69: 0.96 | L69: 41.9 | M69: 30.38 | N69: 0.1 | O69: 0.16 | P69: 0.8 | Q69: 2.42 | R69: 0.51
B70: Второй завтрак
A71: ="1" -> 1 | B71: Кисель из концентрата | C71: ="100" -> 100 | D71: 0.05 | E71: 0 | F71: 9.35 | G71: 38.51 | H71: 0 | I71: 0 | J71: 0 | K71: 0 | L71: 0 | M71: 0 | N71: 0 | O71: 0 | P71: 0 | Q71: 0 | R71: 0
B72: Итого | C72: 100 | D72: 0.05 | E72: 0 | F72: 9.35 | G72: 38.51 | H72: 0 | I72: 0 | J72: 0 | K72: 0 | L72: 0 | M72: 0 | N72: 0 | O72: 0 | P72: 0 | Q72: 0 | R72: 0
B73: Обед
A74: ="-" -> - | B74: Хлеб пшеничный | C74: ="20" -> 20 | D74: 1.32 | E74: 0.13 | F74: 9.38 | G74: 44.78 | H74: 0 | I74: 0 | J74: 0 | K74: 0 | L74: 0 | M74: 0 | N74: 0 | O74: 0 | P74: 0 | Q74: 0 | R74: 0
A75: ="-" -> - | B75: Хлеб ржаной | C75: ="10" -> 10 | D75: 0.66 | E75: 0.12 | F75: 4.17 | G75: 19.34 | H75: 3.5 | I75: 4.7 | J75: 15.8 | K75: 0.39 | L75: 0 | M75: 0.5 | N75: 0.02 | O75: 0.01 | P75: 0.07 | Q75: 0.2 | R75: 0
A76: ="6/10" -> 6/10 | B76: Компот из сухофруктов | C76: 135/15 | D76: 0.76 | E76: 0.04 | F76: 17.38 | G76: 65.70 | H76: 23.5 | I76: 14.96 | J76: 20.37 | K76: 0.49 | L76: 0 | M76: 472.5 | N76: 0.01 | O76: 0.03 | P76: 0.38 | Q76: 0.59 | R76: 0.24
A77: ="16/2" -> 16/2 | B77: Суп картофельный с бобовыми на говяжьем бульоне | C77: ="150" -> 150 | D77: 3.16 | E77: 1.84 | F77: 13.19 | G77: 78.82 | H77: 20.74 | I77: 21.78 | J77: 59.44 | K77: 1.15 | L77: 0 | M77: 654.48 | N77: 0.12 | O77: 0.04 | P77: 0.62 | Q77: 1.42 | R77: 2.76
A78: ="46/3" -> 46/3 | B78: Макаронные изделия отварные с маслом сливочным | C78: ="120" -> 120 | D78: 4.24 | E78: 2.38 | F78: 27.29 | G78: 147.15 | H78: 8.43 | I78: 5.74 | J78: 31.86 | K78: 0.58 | L78: 7.2 | M78: 7.2 | N78: 0.05 | O78: 0.02 | P78: 0.39 | Q78: 1.19 | R78: 0
A79: ="1/27" -> 1/27 | B79: Котлеты "Крестьянские" из мясо говядины и птиц | C79: ="50" -> 50 | D79: 8.49 | E79: 10.13 | F79: 6.56 | G79: 151.09 | H79: 8.97 | I79: 11.93 | J79: 81.28 | K79: 1.14 | L79: 17.85 | M79: 2.48 | N79: 0.03 | O79: 0.06 | P79: 2.48 | Q79: 4.79 | R79: 0.3
B80: Итого | C80: 500 | D80: =SUM(D74:D79) -> 18.63 | E80: 14.64 | F80: 77.97 | G80: 506.88 | H80: 65.14 | I80: 59.11 | J80: 208.75 | K80: 3.75 | L80: 25.05 | M80: 1137.16 | N80: 0.23 | O80: 0.16 | P80: 3.94 | Q80: 8.19 | R80: 3.3
B81: Уплотненный полдник
A82: ="-" -> - | B82: Хлеб пшеничный | C82: ="30" -> 30 | D82: 1.98 | E82: 0.2 | F82: 14.07 | G82: 67.17 | H82: 0 | I82: 0 | J82: 0 | K82: 0 | L82: 0 | M82: 0 | N82: 0 | O82: 0 | P82: 0 | Q82: 0 | R82: 0
A83: ="29/10" -> 29/10 | B83: Чай с лимоном | C83: 144/6 | D83: 0.18 | E83: 0.04 | F83: 7.44 | G83: 29.69 | H83: 1.63 | I83: 0.42 | J83: 0.75 | K83: 0.04 | L83: 0 | M83: 0.33 | N83: 0 | O83: 0 | P83: 0 | Q83: 0.01 | R83: 0.59
A84: 9/4 | B84: Каша рисовая молочная вязкая с маслом сливочным | C84: 150 | D84: 3.89 | E84: 4.37 | F84: 30.38 | G84: 175.65 | H84: 70.36 | I84: 23.23 | J84: 94.42 | K84: 0.4 | L84: 26.25 | M84: 15.19 | N84: 0.04 | O84: 0.09 | P84: 0.5 | Q84: 1.55 | R84: 0.29
A85: ="-" -> - | B85: Фрукты | C85: ="100" -> 100 | D85: 0.4 | E85: 0.4 | F85: 11.6 | G85: 48.68 | H85: 16 | I85: 9 | J85: 11 | K85: 2.2 | L85: 0 | M85: 30 | N85: 0.03 | O85: 0.02 | P85: 0.3 | Q85: 0.4 | R85: 10
B86: Итого | C86: 430 | D86: =SUM(D82:D85) -> 6.45 | E86: =SUM(E82:E85) -> 5.01 | F86: 63.49 | G86: 321.19 | H86: 87.99 | I86: 32.65 | J86: 106.17 | K86: 2.64 | L86: 26.25 | M86: 45.52 | N86: 0.07 | O86: 0.11 | P86: 0.8 | Q86: 1.96 | R86: 10.88
B87: Итого за день | C87: =C69+C72+C80+C86 -> 1365 | D87: 32.67 | E87: 28.59 | F87: 198.24 | G87: 1163.27 | H87: 274.33 | I87: 117.79 | J87: 439.07 | K87: 7.35 | L87: 93.2 | M87: 1213.06 | N87: 0.4 | O87: 0.43 | P87: 5.54 | Q87: 12.57 | R87: 14.69
B89: 4 ДЕНЬ
B90: Завтрак
A91: ="-" -> - | B91: Батон | C91: ="30" -> 30 | D91: 2.31 | E91: 0.9 | F91: 15.99 | G91: 80.86 | H91: 6.6 | I91: 9.9 | J91: 25.5 | K91: 0.6 | L91: 0 | M91: 0 | N91: 0.05 | O91: 0.02 | P91: 0.48 | Q91: 0.9 | R91: 0
A92: ="4/13" -> 4/13 | B92: Сыр (порциями) | C92: ="10" -> 10 | D92: 2.63 | E92: 2.66 | F92: 0 | G92: 35.06 | H92: 100 | I92: 5.5 | J92: 60 | K92: 0.07 | L92: 21 | M92: 17 | N92: 0 | O92: 0.04 | P92: 0.02 | Q92: 0.68 | R92: 0.07
A93: ="27/10" -> 27/10 | B93: Чай сладкий | C93: 142,5/7,5 | D93: 0.15 | E93: 0.04 | F93: 7.44 | G93: 29.07 | H93: 0.22 | I93: 0 | J93: 0 | K93: 0.02 | L93: 0 | M93: 0 | N93: 0 | O93: 0 | P93: 0 | Q93: 0 | R93: 0
A94: ="16/4" -> 16/4 | B94: Каша пшеничная молочная с маслом сливочным | C94: 147/3 | D94: 4.9 | E94: 4.11 | F94: 24.46 | G94: 153.21 | H94: 72.42 | I94: 29.04 | J94: 108.82 | K94: 0.78 | L94: 14.4 | M94: 16.8 | N94: 0.11 | O94: 0.08 | P94: 0.43 | Q94: 1.87 | R94: 0.31
B95: Итого | C95: 340 | D95: =SUM(D91:D94) -> 9.99 | E95: =SUM(E91:E94) -> 7.71 | F95: 47.89 | G95: 298.20 | H95: 179.24 | I95: 44.44 | J95: 194.32 | K95: 1.47 | L95: 35.4 | M95: 33.8 | N95: 0.16 | O95: 0.14 | P95: 0.93 | Q95: 3.45 | R95: 0.38
B96: Второй завтрак
A97: ="-" -> - | B97: Сок в ассортименте | C97: ="100" -> 100 | D97: 0.5 | E97: 0.1 | F97: 10.3 | G97: 43.24 | H97: 7 | I97: 4 | J97: 7 | K97: 1.4 | L97: 0 | M97: 0 | N97: 0.01 | O97: 0.01 | P97: 0.1 | Q97: 0.2 | R97: 2
B98: Итого | C98: 100 | D98: 0.5 | E98: 0.1 | F98: 10.3 | G98: 43.24 | H98: 7 | I98: 4 | J98: 7 | K98: 1.4 | L98: 0 | M98: 0 | N98: 0.01 | O98: 0.01 | P98: 0.1 | Q98: 0.2 | R98: 2
B99: Обед
A100: ="-" -> - | B100: Хлеб пшеничный | C100: ="20" -> 20 | D100: 1.32 | E100: 0.13 | F100: 9.38 | G100: 44.78 | H100: 0 | I100: 0 | J100: 0 | K100: 0 | L100: 0 | M100: 0 | N100: 0 | O100: 0 | P100: 0 | Q100: 0 | R100: 0
A101: ="-" -> - | B101: Хлеб ржаной | C101: ="10" -> 10 | D101: 0.66 | E101: 0.12 | F101: 4.17 | G101: 19.34 | H101: 3.5 | I101: 4.7 | J101: 15.8 | K101: 0.39 | L101: 0 | M101: 0.5 | N101: 0.02 | O101: 0.01 | P101: 0.07 | Q101: 0.2 | R101: 0
A102: ="3/10" -> 3/10 | B102: Компот из яблок | C102: 116/34 | D102: 0.12 | E102: 0.12 | F102: 18.06 | G102: 70.01 | H102: 5.09 | I102: 2.57 | J102: 3.07 | K102: 0.68 | L102: 0 | M102: 8.1 | N102: 0.01 | O102: 0.01 | P102: 0.08 | Q102: 0.12 | R102: 1.2
A103: 32/1 | B103: Салат из отварной свеклы с растительным маслом | C103: 30 | D103: 0.41 | E103: 1.79 | F103: 2.7 | G103: 26.96 | H103: 10.22 | I103: 5.79 | J103: 11.4 | K103: 0.37 | L103: 0 | M103: 2.47 | N103: 0 | O103: 0.01 | P103: 0.04 | Q103: 0.12 | R103: 0.58
A104: ="14/2" -> 14/2 | B104: Суп картофельный с пшенной крупой | C104: ="150" -> 150 | D104: 1.3 | E104: 2.9 | F104: 10.12 | G104: 70.80 | H104: 8.3 | I104: 13.76 | J104: 34.18 | K104: 0.5 | L104: 0 | M104: 583.68 | N104: 0.05 | O104: 0.03 | P104: 0.56 | Q104: 1.04 | R104: 3.9
A105: 3/4 | B105: Каша гречневая вязкая | C105: 120 | D105: 3.65 | E105: 3.08 | F105: 19.07 | G105: 113.79 | H105: 7.47 | I105: 55.92 | J105: 82.53 | K105: 1.92 | L105: 12 | M105: 10.75 | N105: 0.11 | O105: 0.06 | P105: 1.05 | Q105: 2.12 | R105: 0
A106: ="2/9" -> 2/9 | B106: Мясо птицы (грудка) отварное в соусе | C106: ="50" -> 50 | D106: 5.82 | E106: 5.59 | F106: 1.22 | G106: 78.41 | H106: 5.9 | I106: 4.98 | J106: 41.6 | K106: 0.47 | L106: 15.08 | M106: 7.95 | N106: 0.02 | O106: 0.03 | P106: 2.14 | Q106: 4.37 | R106: 0.22
B107: Итого | C107: 530 | D107: =SUM(D100:D106) -> 13.28 | E107: =SUM(E100:E106) -> 13.73 | F107: 64.72 | G107: 424.09 | H107: 40.48 | I107: 87.72 | J107: 188.58 | K107: 4.33 | L107: 27.08 | M107: 613.45 | N107: 0.21 | O107: 0.15 | P107: 3.94 | Q107: 7.97 | R107: 5.9
B108: Уплотненный полдник
A109: ="27/10" -> 27/10 | B109: Чай полусладкий | C109: 146,3/3,7 | D109: 0.15 | E109: 0.04 | F109: 3.78 | G109: 15.13 | H109: 0.11 | I109: 0 | J109: 0 | K109: 0.01 | L109: 0 | M109: 0 | N109: 0 | O109: 0 | P109: 0 | Q109: 0 | R109: 0
A110: ="2/6" -> 2/6 | B110: Омлет запеченный или паровой | C110: ="120" -> 120 | D110: 12.52 | E110: 17.09 | F110: 2.31 | G110: 212.77 | H110: 88.6 | I110: 14.52 | J110: 191.63 | K110: 2.15 | L110: 173.09 | M110: 73.73 | N110: 0.06 | O110: 0.39 | P110: 0.19 | Q110: 3.76 | R110: 0.19
A111: ="14/12" -> 14/12 | B111: Булочка дорожная | C111: ="70" -> 70 | D111: 5.42 | E111: 7.86 | F111: 38.65 | G111: 245.16 | H111: 33.75 | I111: 9.21 | J111: 55.05 | K111: 0.55 | L111: 27.9 | M111: 26.91 | N111: 0.06 | O111: 0.05 | P111: 0.48 | Q111: 1.61 | R111: 0.11
B112: Итого | C112: 340 | D112: =SUM(D109:D111) -> 18.09 | E112: 24.99 | F112: 44.74 | G112: 473.07 | H112: 122.46 | I112: 23.73 | J112: 246.68 | K112: 2.71 | L112: 200.99 | M112: 100.64 | N112: 0.12 | O112: 0.44 | P112: 0.67 | Q112: 5.37 | R112: 0.3
B113: Итого за день | C113: =C95+C98+C107+C112 -> 1310 | D113: 41.86 | E113: 46.53 | F113: 167.65 | G113: 1238.59 | H113: 349.18 | I113: 159.89 | J113: 636.58 | K113: 9.91 | L113: 263.47 | M113: 747.89 | N113: 0.5 | O113: 0.74 | P113: 5.64 | Q113: 16.99 | R113: 8.58
B115: 5 ДЕНЬ
B116: Завтрак
A117: ="-" -> - | B117: Батон | C117: ="30" -> 30 | D117: 2.31 | E117: 0.9 | F117: 15.99 | G117: 80.86 | H117: 6.6 | I117: 9.9 | J117: 25.5 | K117: 0.6 | L117: 0 | M117: 0 | N117: 0.05 | O117: 0.02 | P117: 0.48 | Q117: 0.9 | R117: 0
A118: ="-" -> - | B118: Масло сливочное | C118: ="5" -> 5 | D118: 0.04 | E118: 3.63 | F118: 0.07 | G118: 33.03 | H118: 1.2 | I118: 0 | J118: 1.5 | K118: 0.01 | L118: 20 | M118: 15 | N118: 0 | O118: 0.01 | P118: 0.01 | Q118: 0.01 | R118: 0
A119: ="-" -> - | B119: Печенье | C119: ="20" -> 20 | D119: 1.5 | E119: 1.96 | F119: 15.34 | G119: 84.45 | H119: 5.8 | I119: 4 | J119: 18 | K119: 0.42 | L119: 2 | M119: 1.6 | N119: 0.02 | O119: 0.01 | P119: 0.14 | Q119: 0.38 | R119: 0
A120: ="32/10" -> 32/10 | B120: Кофейный напиток с молоком | C120: 75/75 | D120: 2.68 | E120: 1.97 | F120: 10.86 | G120: 69.96 | H120: 87.52 | I120: 9.98 | J120: 62.78 | K120: 0.09 | L120: 15 | M120: 6.75 | N120: 0.03 | O120: 0.1 | P120: 0.06 | Q120: 0.6 | R120: 0.39
A121: ="15/4" -> 15/4 | B121: Каша ячневая молочная с маслом сливочным | C121: 147/3 | D121: 4.48 | E121: 3.58 | F121: 25.31 | G121: 147.71 | H121: 86.41 | I121: 20.43 | J121: 137.53 | K121: 0.54 | L121: 14.4 | M121: 12 | N121: 0.08 | O121: 0.09 | P121: 0.7 | Q121: 1.9 | R121: 0.31
B122: Итого | C122: 355 | D122: =SUM(D117:D121) -> 11.01 | E122: =SUM(E117:E121) -> 12.04 | F122: 67.57 | G122: 416.01 | H122: 187.53 | I122: 44.31 | J122: 245.31 | K122: 1.66 | L122: 51.4 | M122: 35.35 | N122: 0.18 | O122: 0.23 | P122: 1.39 | Q122: 3.79 | R122: 0.7
B123: Второй завтрак
A124: ="-" -> - | B124: Кисломолочный продукт | C124: ="100" -> 100 | D124: 4.1 | E124: 1.5 | F124: 5.9 | G124: 55.62 | H124: 124 | I124: 15 | J124: 95 | K124: 0.1 | L124: 10 | M124: 0 | N124: 0.03 | O124: 0.15 | P124: 0.2 | Q124: 1.2 | R124: 0.6
B125: Итого | C125: 100 | D125: 4.1 | E125: 1.5 | F125: 5.9 | G125: 55.62 | H125: 124 | I125: 15 | J125: 95 | K125: 0.1 | L125: 10 | M125: 0 | N125: 0.03 | O125: 0.15 | P125: 0.2 | Q125: 1.2 | R125: 0.6
B126: Обед
A127: ="-" -> - | B127: Хлеб пшеничный | C127: ="20" -> 20 | D127: 1.32 | E127: 0.13 | F127: 9.38 | G127: 44.78 | H127: 0 | I127: 0 | J127: 0 | K127: 0 | L127: 0 | M127: 0 | N127: 0 | O127: 0 | P127: 0 | Q127: 0 | R127: 0
A128: ="-" -> - | B128: Хлеб ржаной | C128: ="10" -> 10 | D128: 0.66 | E128: 0.12 | F128: 4.17 | G128: 19.34 | H128: 3.5 | I128: 4.7 | J128: 15.8 | K128: 0.39 | L128: 0 | M128: 0.5 | N128: 0.02 | O128: 0.01 | P128: 0.07 | Q128: 0.2 | R128: 0
A129: ="6/10" -> 6/10 | B129: Компот из сухофруктов | C129: 135/15 | D129: 0.76 | E129: 0.04 | F129: 17.38 | G129: 65.70 | H129: 23.5 | I129: 14.96 | J129: 20.37 | K129: 0.49 | L129: 0 | M129: 472.5 | N129: 0.01 | O129: 0.03 | P129: 0.38 | Q129: 0.59 | R129: 0.24
A130: ="4/2" -> 4/2 | B130: Борщ с картофелем на говяжьем бульоне | C130: ="150" -> 150 | D130: 1 | E130: 1.67 | F130: 7.94 | G130: 48.00 | H130: 19.05 | I130: 12.26 | J130: 25.61 | K130: 0.58 | L130: 0 | M130: 607.68 | N130: 0.02 | O130: 0.03 | P130: 0.32 | Q130: 0.56 | R130: 4.76
A131: ="17/4" -> 17/4 | B131: Каша молочная ассорти (рис, пшено) с маслом сливочным | C131: ="120" -> 120 | D131: 3.52 | E131: 3.67 | F131: 18.96 | G131: 122.01 | H131: 69.65 | I131: 19.66 | J131: 83.75 | K131: 0.42 | L131: 14.54 | M131: 13.92 | N131: 0.06 | O131: 0.08 | P131: 0.31 | Q131: 1.32 | R131: 0.32
A132: ="7" -> 7 | B132: Котлеты из мяса бройлер-цыплят | C132: ="50" -> 50 | D132: 7.56 | E132: 7.12 | F132: 6.56 | G132: 120.34 | H132: 8.32 | I132: 10.63 | J132: 67.18 | K132: 0.95 | L132: 20.72 | M132: 3.95 | N132: 0.04 | O132: 0.06 | P132: 2.82 | Q132: 5.03 | R132: 0.13
B133: Итого | C133: 500 | D133: =SUM(D127:D132) -> 14.82 | E133: 12.75 | F133: 64.39 | G133: 420.17 | H133: 124.02 | I133: 62.21 | J133: 212.71 | K133: 2.83 | L133: 35.26 | M133: 1098.55 | N133: 0.15 | O133: 0.21 | P133: 3.9 | Q133: 7.7 | R133: 5.45
B134: Уплотненный полдник
A135: ="-" -> - | B135: Хлеб пшеничный | C135: ="30" -> 30 | D135: 1.98 | E135: 0.2 | F135: 14.07 | G135: 67.17 | H135: 0 | I135: 0 | J135: 0 | K135: 0 | L135: 0 | M135: 0 | N135: 0 | O135: 0 | P135: 0 | Q135: 0 | R135: 0
A136: ="29/10" -> 29/10 | B136: Чай с лимоном | C136: 144/6 | D136: 0.18 | E136: 0.04 | F136: 7.44 | G136: 29.69 | H136: 1.63 | I136: 0.42 | J136: 0.75 | K136: 0.04 | L136: 0 | M136: 0.33 | N136: 0 | O136: 0 | P136: 0 | Q136: 0.01 | R136: 0.59
A137: ="24/2" -> 24/2 | B137: Суп молочный с вермишелью | C137: ="150" -> 150 | D137: 4.29 | E137: 3.79 | F137: 14.21 | G137: 107.16 | H137: 125.88 | I137: 15.85 | J137: 98.22 | K137: 0.3 | L137: 27 | M137: 13.5 | N137: 0.05 | O137: 0.15 | P137: 0.21 | Q137: 1.19 | R137: 0.55
A138: ="-" -> - | B138: Фрукты | C138: ="100" -> 100 | D138: 0.4 | E138: 0.4 | F138: 11.6 | G138: 48.68 | H138: 16 | I138: 9 | J138: 11 | K138: 2.2 | L138: 0 | M138: 30 | N138: 0.03 | O138: 0.02 | P138: 0.3 | Q138: 0.4 | R138: 10
B139: Итого | C139: 430 | D139: =SUM(D135:D138) -> 6.85 | E139: =SUM(E135:E138) -> 4.43 | F139: 47.32 | G139: 252.70 | H139: 143.51 | I139: 25.27 | J139: 109.97 | K139: 2.54 | L139: 27 | M139: 43.83 | N139: 0.08 | O139: 0.17 | P139: 0.51 | Q139: 1.6 | R139: 11.14
B140: Итого за день | C140: =C122+C125+C133+C139 -> 1385 | D140: 36.78 | E140: 30.72 | F140: 185.18 | G140: 1144.51 | H140: 579.06 | I140: 146.79 | J140: 662.99 | K140: 7.13 | L140: 123.66 | M140: 1177.73 | N140: 0.44 | O140: 0.76 | P140: 6 | Q140: 14.29 | R140: 17.89
B143: 6 ДЕНЬ
B144: Завтрак
A145: ="-" -> - | B145: Батон | C145: ="30" -> 30 | D145: 2.31 | E145: 0.9 | F145: 15.99 | G145: 80.86 | H145: 6.6 | I145: 9.9 | J145: 25.5 | K145: 0.6 | L145: 0 | M145: 0 | N145: 0.05 | O145: 0.02 | P145: 0.48 | Q145: 0.9 | R145: 0
A146: ="-" -> - | B146: Масло сливочное | C146: ="5" -> 5 | D146: 0.04 | E146: 3.63 | F146: 0.07 | G146: 33.03 | H146: 1.2 | I146: 0 | J146: 1.5 | K146: 0.01 | L146: 20 | M146: 15 | N146: 0 | O146: 0.01 | P146: 0.01 | Q146: 0.01 | R146: 0
A147: ="27/10" -> 27/10 | B147: Чай полусладкий | C147: 146,3/3,7 | D147: 0.15 | E147: 0.04 | F147: 3.78 | G147: 15.13 | H147: 0.11 | I147: 0 | J147: 0 | K147: 0.01 | L147: 0 | M147: 0 | N147: 0 | O147: 0 | P147: 0 | Q147: 0 | R147: 0
A148: ="6/4" -> 6/4 | B148: Каша овсяная молочная с маслом сливочным | C148: 147/3 | D148: 5.78 | E148: 6.32 | F148: 25.7 | G148: 179.98 | H148: 104.73 | I148: 46.82 | J148: 155.59 | K148: 1.15 | L148: 30 | M148: 16.88 | N148: 0.14 | O148: 0.13 | P148: 0.32 | Q148: 1.99 | R148: 0.39
B149: Итого | C149: 335 | D149: =SUM(D145:D148) -> 8.28 | E149: =SUM(E145:E148) -> 10.89 | F149: 45.54 | G149: 309.00 | H149: 112.64 | I149: 56.72 | J149: 182.59 | K149: 1.77 | L149: 50 | M149: 31.88 | N149: 0.19 | O149: 0.16 | P149: 0.81 | Q149: 2.9 | R149: 0.39
B150: Второй завтрак
A151: ="-" -> - | B151: Сок в ассортименте | C151: ="100" -> 100 | D151: 0.5 | E151: 0.1 | F151: 10.3 | G151: 43.24 | H151: 7 | I151: 4 | J151: 7 | K151: 1.4 | L151: 0 | M151: 0 | N151: 0.01 | O151: 0.01 | P151: 0.1 | Q151: 0.2 | R151: 2
B152: Итого | C152: 100 | D152: 0.5 | E152: 0.1 | F152: 10.3 | G152: 43.24 | H152: 7 | I152: 4 | J152: 7 | K152: 1.4 | L152: 0 | M152: 0 | N152: 0.01 | O152: 0.01 | P152: 0.1 | Q152: 0.2 | R152: 2
B153: Обед
A154: ="-" -> - | B154: Хлеб пшеничный | C154: ="20" -> 20 | D154: 1.32 | E154: 0.13 | F154: 9.38 | G154: 44.78 | H154: 0 | I154: 0 | J154: 0 | K154: 0 | L154: 0 | M154: 0 | N154: 0 | O154: 0 | P154: 0 | Q154: 0 | R154: 0
A155: ="-" -> - | B155: Хлеб ржаной | C155: ="10" -> 10 | D155: 0.66 | E155: 0.12 | F155: 4.17 | G155: 19.34 | H155: 3.5 | I155: 4.7 | J155: 15.8 | K155: 0.39 | L155: 0 | M155: 0.5 | N155: 0.02 | O155: 0.01 | P155: 0.07 | Q155: 0.2 | R155: 0
A156: ="6/10" -> 6/10 | B156: Компот из сухофруктов | C156: 135/15 | D156: 0.76 | E156: 0.04 | F156: 17.38 | G156: 65.70 | H156: 23.5 | I156: 14.96 | J156: 20.37 | K156: 0.49 | L156: 0 | M156: 472.5 | N156: 0.01 | O156: 0.03 | P156: 0.38 | Q156: 0.59 | R156: 0.24
A157: ="11/2" -> 11/2 | B157: Рассольник с крупой на говяжьем бульоне | C157: ="150" -> 150 | D157: 1.29 | E157: 2.84 | F157: 10.3 | G157: 70.88 | H157: 10 | I157: 13.55 | J157: 37.65 | K157: 0.51 | L157: 0 | M157: 585.36 | N157: 0.05 | O157: 0.03 | P157: 0.58 | Q157: 1.02 | R157: 4.02
A158: ="46/3" -> 46/3 | B158: Макаронные изделия отварные с маслом сливочным | C158: ="120" -> 120 | D158: 4.24 | E158: 2.38 | F158: 27.29 | G158: 147.15 | H158: 8.43 | I158: 5.74 | J158: 31.86 | K158: 0.58 | L158: 7.2 | M158: 7.2 | N158: 0.05 | O158: 0.02 | P158: 0.39 | Q158: 1.19 | R158: 0
A159: ="12/7" -> 12/7 | B159: Биточки (котлеты) из рыбы минтай | C159: ="50" -> 50 | D159: 6.1 | E159: 3.19 | F159: 7.03 | G159: 81.13 | H159: 16.06 | I159: 21.63 | J159: 89.94 | K159: 0.58 | L159: 3.3 | M159: 0.2 | N159: 0.04 | O159: 0.04 | P159: 0.63 | Q159: 1.84 | R159: 0.17
B160: Итого | C160: 500 | D160: =SUM(D154:D159) -> 14.37 | E160: =SUM(E154:E159) -> 8.7 | F160: 75.55 | G160: 428.97 | H160: 61.49 | I160: 60.58 | J160: 195.62 | K160: 2.55 | L160: 10.5 | M160: 1065.76 | N160: 0.17 | O160: 0.13 | P160: 2.05 | Q160: 4.84 | R160: 4.43
B161: Уплотненный полдник
A162: ="-" -> - | B162: Хлеб пшеничный | C162: ="30" -> 30 | D162: 1.98 | E162: 0.2 | F162: 14.07 | G162: 67.17 | H162: 0 | I162: 0 | J162: 0 | K162: 0 | L162: 0 | M162: 0 | N162: 0 | O162: 0 | P162: 0 | Q162: 0 | R162: 0
A163: ="27/10" -> 27/10 | B163: Чай сладкий | C163: 142,5/7,5 | D163: 0.15 | E163: 0.04 | F163: 7.44 | G163: 29.07 | H163: 0.22 | I163: 0 | J163: 0 | K163: 0.02 | L163: 0 | M163: 0 | N163: 0 | O163: 0 | P163: 0 | Q163: 0 | R163: 0
A164: ="11/4" -> 11/4 | B164: Каша пшенная молочная с маслом сливочным | C164: 146,3/3,7 | D164: 4.91 | E164: 4.58 | F164: 24.47 | G164: 157.58 | H164: 72.57 | I164: 29.04 | J164: 109.02 | K164: 0.78 | L164: 16.2 | M164: 18.6 | N164: 0.11 | O164: 0.09 | P164: 0.44 | Q164: 1.87 | R164: 0.31
A165: ="-" -> - | B165: Фрукты | C165: ="100" -> 100 | D165: 1.5 | E165: 0.5 | F165: 22.7 | G165: 95.50 | H165: 8 | I165: 42 | J165: 28 | K165: 0.6 | L165: 0 | M165: 120 | N165: 0.04 | O165: 0.05 | P165: 0.6 | Q165: 0.9 | R165: 10
B166: Итого | C166: 430 | D166: =SUM(D162:D165) -> 8.54 | E166: =SUM(E162:E165) -> 5.32 | F166: 68.68 | G166: 349.32 | H166: 80.79 | I166: 71.04 | J166: 137.02 | K166: 1.4 | L166: 16.2 | M166: 138.6 | N166: 0.15 | O166: 0.14 | P166: 1.04 | Q166: 2.77 | R166: 10.31
B167: Итого за день | C167: =C149+C152+C160+C166 -> 1365 | D167: =D149+D152+D160+D166 -> 31.69 | E167: =E149+E152+E160+E166 -> 25.01 | F167: =F149+F152+F160+F166 -> 200.07 | G167: =G149+G152+G160+G166 -> 1130.53 | H167: =H149+H152+H160+H166 -> 261.92 | I167: =I149+I152+I160+I166 -> 192.34 | J167: =J149+J152+J160+J166 -> 522.23 | K167: =K149+K152+K160+K166 -> 7.12 | L167: =L149+L152+L160+L166 -> 76.7 | M167: =M149+M152+M160+M166 -> 1236.24 | N167: =N149+N152+N160+N166 -> 0.52 | O167: =O149+O152+O160+O166 -> 0.44 | P167: =P149+P152+P160+P166 -> 4 | Q167: =Q149+Q152+Q160+Q166 -> 10.71 | R167: =R149+R152+R160+R166 -> 17.13
B169: 2 НЕДЕЛЯ
B170: 1 ДЕНЬ
B171: Завтрак
A172: ="-" -> - | B172: Батон | C172: ="30" -> 30 | D172: 2.31 | E172: 0.9 | F172: 15.99 | G172: 80.86 | H172: 6.6 | I172: 9.9 | J172: 25.5 | K172: 0.6 | L172: 0 | M172: 0 | N172: 0.05 | O172: 0.02 | P172: 0.48 | Q172: 0.9 | R172: 0
A173: ="-" -> - | B173: Масло сливочное | C173: ="5" -> 5 | D173: 0.04 | E173: 3.63 | F173: 0.07 | G173: 33.03 | H173: 1.2 | I173: 0 | J173: 1.5 | K173: 0.01 | L173: 20 | M173: 15 | N173: 0 | O173: 0.01 | P173: 0.01 | Q173: 0.01 | R173: 0
A174: ="-" -> - | B174: Печенье | C174: ="20" -> 20 | D174: 1.5 | E174: 1.96 | F174: 15.34 | G174: 84.45 | H174: 5.8 | I174: 4 | J174: 18 | K174: 0.42 | L174: 2 | M174: 1.6 | N174: 0.02 | O174: 0.01 | P174: 0.14 | Q174: 0.38 | R174: 0
A175: ="29/10" -> 29/10 | B175: Чай с лимоном | C175: 144/6 | D175: 0.18 | E175: 0.04 | F175: 7.44 | G175: 29.69 | H175: 1.63 | I175: 0.42 | J175: 0.75 | K175: 0.04 | L175: 0 | M175: 0.33 | N175: 0 | O175: 0 | P175: 0 | Q175: 0.01 | R175: 0.59
A176: ="5/4" -> 5/4 | B176: Каша манная молочная с маслом сливочным | C176: 147/3 | D176: 3.98 | E176: 3.45 | F176: 22.16 | G176: 134.39 | H176: 69.53 | I176: 11.14 | J176: 65.76 | K176: 0.29 | L176: 14.4 | M176: 12 | N176: 0.04 | O176: 0.08 | P176: 0.28 | Q176: 1.21 | R176: 0.31
B177: Итого | C177: 355 | D177: =SUM(D172:D176) -> 8.01 | E177: =SUM(E172:E176) -> 9.98 | F177: 61 | G177: 362.42 | H177: 84.76 | I177: 25.46 | J177: 111.51 | K177: 1.36 | L177: 36.4 | M177: 28.93 | N177: 0.11 | O177: 0.12 | P177: 0.91 | Q177: 2.51 | R177: 0.9
B178: Второй завтрак
A179: ="-" -> - | B179: Сок в ассортименте | C179: ="100" -> 100 | D179: 0.5 | E179: 0.1 | F179: 10.3 | G179: 43.24 | H179: 7 | I179: 4 | J179: 7 | K179: 1.4 | L179: 0 | M179: 0 | N179: 0.01 | O179: 0.01 | P179: 0.1 | Q179: 0.2 | R179: 2
B180: Итого | C180: 100 | D180: 0.5 | E180: 0.1 | F180: 10.3 | G180: 43.24 | H180: 7 | I180: 4 | J180: 7 | K180: 1.4 | L180: 0 | M180: 0 | N180: 0.01 | O180: 0.01 | P180: 0.1 | Q180: 0.2 | R180: 2
B181: Обед
A182: ="-" -> - | B182: Хлеб пшеничный | C182: ="20" -> 20 | D182: 1.32 | E182: 0.13 | F182: 9.38 | G182: 44.78 | H182: 0 | I182: 0 | J182: 0 | K182: 0 | L182: 0 | M182: 0 | N182: 0 | O182: 0 | P182: 0 | Q182: 0 | R182: 0
A183: ="-" -> - | B183: Хлеб ржаной | C183: ="10" -> 10 | D183: 0.66 | E183: 0.12 | F183: 4.17 | G183: 19.34 | H183: 3.5 | I183: 4.7 | J183: 15.8 | K183: 0.39 | L183: 0 | M183: 0.5 | N183: 0.02 | O183: 0.01 | P183: 0.07 | Q183: 0.2 | R183: 0
A184: ="3/10" -> 3/10 | B184: Компот из яблок | C184: 116/34 | D184: 0.12 | E184: 0.12 | F184: 18.06 | G184: 70.01 | H184: 5.09 | I184: 2.57 | J184: 3.07 | K184: 0.68 | L184: 0 | M184: 8.1 | N184: 0.01 | O184: 0.01 | P184: 0.08 | Q184: 0.12 | R184: 1.2
A185: ="18/2" -> 18/2 | B185: Суп картофельный с макаронными изделиями на говяжьем бульоне | C185: ="150" -> 150 | D185: 1.61 | E185: 1.43 | F185: 12.17 | G185: 66.90 | H185: 9.37 | I185: 13.26 | J185: 33.35 | K185: 0.55 | L185: 0 | M185: 785.16 | N185: 0.06 | O185: 0.03 | P185: 0.58 | Q185: 1.03 | R185: 3.67
A186: 21/4 | B186: Пюре гороховое | C186: 120 | D186: 11.94 | E186: 2.82 | F186: 33.18 | G186: 195.48 | H186: 64.85 | I186: 59 | J186: 182.06 | K186: 3.76 | L186: 9.6 | M186: 11.32 | N186: 0.35 | O186: 0.08 | P186: 1.01 | Q186: 3.98 | R186: 0
A187: ="16/8" -> 16/8 | B187: Биточки (котлеты) из мяса говядины | C187: ="50" -> 50 | D187: 7.77 | E187: 6.83 | F187: 6.98 | G187: 120.35 | H187: 5.82 | I187: 11.96 | J187: 74.39 | K187: 1.33 | L187: 0 | M187: 0.25 | N187: 0.03 | O187: 0.06 | P187: 1.82 | Q187: 3.43 | R187: 0
B188: Итого | C188: 500 | D188: =SUM(D182:D187) -> 23.42 | E188: 11.45 | F188: 83.94 | G188: 516.86 | H188: 88.63 | I188: 91.49 | J188: 308.67 | K188: 6.71 | L188: 9.6 | M188: 805.33 | N188: 0.47 | O188: 0.19 | P188: 3.56 | Q188: 8.76 | R188: 4.87
B189: Уплотненный полдник
A190: ="-" -> - | B190: Хлеб пшеничный | C190: ="30" -> 30 | D190: 1.98 | E190: 0.2 | F190: 14.07 | G190: 67.17 | H190: 0 | I190: 0 | J190: 0 | K190: 0 | L190: 0 | M190: 0 | N190: 0 | O190: 0 | P190: 0 | Q190: 0 | R190: 0
A191: ="27/10" -> 27/10 | B191: Чай полусладкий | C191: 146,3/3,7 | D191: 0.15 | E191: 0.04 | F191: 3.78 | G191: 15.13 | H191: 0.11 | I191: 0 | J191: 0 | K191: 0.01 | L191: 0 | M191: 0 | N191: 0 | O191: 0 | P191: 0 | Q191: 0 | R191: 0
A192: ="9/4" -> 9/4 | B192: Каша рисовая молочная вязкая с маслом сливочным | C192: 146,3/3,7 | D192: 3.89 | E192: 4.37 | F192: 30.38 | G192: 175.65 | H192: 70.36 | I192: 23.23 | J192: 94.42 | K192: 0.4 | L192: 26.25 | M192: 15.19 | N192: 0.04 | O192: 0.09 | P192: 0.5 | Q192: 1.55 | R192: 0.29
A193: ="-" -> - | B193: Фрукты | C193: ="100" -> 100 | D193: 0.4 | E193: 0.4 | F193: 11.6 | G193: 48.68 | H193: 16 | I193: 9 | J193: 11 | K193: 2.2 | L193: 0 | M193: 30 | N193: 0.03 | O193: 0.02 | P193: 0.3 | Q193: 0.4 | R193: 10
B194: Итого | C194: 430 | D194: =SUM(D190:D193) -> 6.42 | E194: =SUM(E190:E193) -> 5.01 | F194: 59.83 | G194: 306.63 | H194: 86.47 | I194: 32.23 | J194: 105.42 | K194: 2.61 | L194: 26.25 | M194: 45.19 | N194: 0.07 | O194: 0.11 | P194: 0.8 | Q194: 1.95 | R194: 10.29
B195: Итого за день | C195: =C177+C180+C188+C194 -> 1385 | D195: 38.35 | E195: 26.54 | F195: 215.07 | G195: 1229.15 | H195: 266.86 | I195: 153.18 | J195: 532.6 | K195: 12.08 | L195: 72.25 | M195: 879.45 | N195: 0.66 | O195: 0.43 | P195: 5.37 | Q195: 13.42 | R195: 18.06
B197: 2 ДЕНЬ
B198: Завтрак
A199: ="-" -> - | B199: Батон | C199: ="30" -> 30 | D199: 2.31 | E199: 0.9 | F199: 15.99 | G199: 80.86 | H199: 6.6 | I199: 9.9 | J199: 25.5 | K199: 0.6 | L199: 0 | M199: 0 | N199: 0.05 | O199: 0.02 | P199: 0.48 | Q199: 0.9 | R199: 0
A200: ="-" -> - | B200: Масло сливочное | C200: ="5" -> 5 | D200: 0.04 | E200: 3.63 | F200: 0.07 | G200: 33.03 | H200: 1.2 | I200: 0 | J200: 1.5 | K200: 0.01 | L200: 20 | M200: 15 | N200: 0 | O200: 0.01 | P200: 0.01 | Q200: 0.01 | R200: 0
A201: ="31/10" -> 31/10 | B201: Чай с молоком | C201: 112,5/37,5 | D201: 1.21 | E201: 0.96 | F201: 9.21 | G201: 48.42 | H201: 43.87 | I201: 4.99 | J201: 31.39 | K201: 0.06 | L201: 7.5 | M201: 3.38 | N201: 0.01 | O201: 0.05 | P201: 0.03 | Q201: 0.3 | R201: 0.2
A202: ="17/4" -> 17/4 | B202: Каша молочная ассорти (рис, пшено) с маслом сливочным | C202: ="150" -> 150 | D202: 4.39 | E202: 4.59 | F202: 23.7 | G202: 152.51 | H202: 87.07 | I202: 24.57 | J202: 104.69 | K202: 0.52 | L202: 18.18 | M202: 17.4 | N202: 0.07 | O202: 0.1 | P202: 0.39 | Q202: 1.65 | R202: 0.4
B203: Итого | C203: 335 | D203: =SUM(D199:D202) -> 7.95 | E203: =SUM(E199:E202) -> 10.08 | F203: 48.97 | G203: 314.82 | H203: 138.74 | I203: 39.46 | J203: 163.08 | K203: 1.19 | L203: 45.68 | M203: 35.78 | N203: 0.13 | O203: 0.18 | P203: 0.91 | Q203: 2.86 | R203: 0.6
B204: Второй завтрак
A205: ="-" -> - | B205: Кисломолочный продукт | C205: ="100" -> 100 | D205: 0.6 | E205: 0.3 | F205: 5.6 | G205: 24.88 | H205: 15 | I205: 9 | J205: 12 | K205: 0.4 | L205: 0 | M205: 30 | N205: 0.03 | O205: 0.03 | P205: 0.6 | Q205: 0.7 | R205: 15
B206: Итого | C206: 100 | D206: 0.6 | E206: 0.3 | F206: 5.6 | G206: 24.88 | H206: 15 | I206: 9 | J206: 12 | K206: 0.4 | L206: 0 | M206: 30 | N206: 0.03 | O206: 0.03 | P206: 0.6 | Q206: 0.7 | R206: 15
B207: Обед
A208: ="-" -> - | B208: Хлеб пшеничный | C208: ="20" -> 20 | D208: 1.32 | E208: 0.13 | F208: 9.38 | G208: 44.78 | H208: 0 | I208: 0 | J208: 0 | K208: 0 | L208: 0 | M208: 0 | N208: 0 | O208: 0 | P208: 0 | Q208: 0 | R208: 0
A209: ="-" -> - | B209: Хлеб ржаной | C209: ="10" -> 10 | D209: 0.66 | E209: 0.12 | F209: 4.17 | G209: 19.34 | H209: 3.5 | I209: 4.7 | J209: 15.8 | K209: 0.39 | L209: 0 | M209: 0.5 | N209: 0.02 | O209: 0.01 | P209: 0.07 | Q209: 0.2 | R209: 0
A210: ="6/10" -> 6/10 | B210: Компот из сухофруктов | C210: 135/15 | D210: 0.76 | E210: 0.04 | F210: 17.38 | G210: 65.70 | H210: 23.5 | I210: 14.96 | J210: 20.37 | K210: 0.49 | L210: 0 | M210: 472.5 | N210: 0.01 | O210: 0.03 | P210: 0.38 | Q210: 0.59 | R210: 0.24
A211: ="4/2" -> 4/2 | B211: Борщ с картофелем на говяжьем бульоне | C211: ="150" -> 150 | D211: 1 | E211: 1.67 | F211: 7.94 | G211: 48.00 | H211: 19.05 | I211: 12.26 | J211: 25.61 | K211: 0.58 | L211: 0 | M211: 607.68 | N211: 0.02 | O211: 0.03 | P211: 0.32 | Q211: 0.56 | R211: 4.76
A212: ="3/8" -> 3/8 | B212: Мясо говядины тушеное с овощами | C212: 112,5/37,5 | D212: 11.79 | E212: 11.74 | F212: 16.4 | G212: 216.87 | H212: 17.12 | I212: 30.38 | J212: 139.44 | K212: 2.06 | L212: 0 | M212: 15 | N212: 0.1 | O212: 0.11 | P212: 2.8 | Q212: 6.67 | R212: 8.01
... 111 more rows

Sheet Dop
A1: Дата составления | B1: 2025-01-01
A2: Дата печати | B2: 2024-11-08T16:17:32
A3: Группа | B3: Ясли
A4: Физ.Норма | B4: СанПиН 2.3/2.4.3590-20 1-3 года
B5: 1
B6: 12.01.2025
